bitfinex/quotes_SOLUSD_20230703
["timestamp","ask_amount","ask_price","bid_price","bid_amount"]
[1688343884518,21.712,19.482,19.472,179.686]
[1688343884711,21.712,19.482,19.472,21.722]
[1688343884931,20.0,19.481,19.472,21.722]
[1688343885128,41.713,19.481,19.473,55.0]
[1688343885426,41.713,19.481,19.474,21.72]
[1688343885636,41.713,19.481,19.475,55.0]
[1688343886129,21.713,19.481,19.475,55.0]
[1688343886430,77.613,19.481,19.471,21.723]
[1688343886634,77.613,19.481,19.472,55.0]
[1688343888239,77.613,19.481,19.465,55.946]
[1688343888527,77.613,19.481,19.464,98.8484]
[1688343888528,77.636,19.476,19.466,21.729]
[1688343889420,77.636,19.476,19.465,21.73]
[1688343889734,77.636,19.476,19.466,55.0]
[1688343890029,77.636,19.476,19.466,76.729]
[1688343890335,21.719,19.476,19.466,76.729]
[1688343892637,21.719,19.476,19.466,132.672]
[1688343892833,55.0,19.484,19.466,132.672]
[1688343893032,21.715,19.48,19.474,21.721]
[1688343893236,21.715,19.48,19.475,55.0]
[1688343893622,21.715,19.48,19.474,55.0]
[1688343894033,21.715,19.48,19.473,76.722]
[1688343895147,21.715,19.48,19.473,21.722]
[1688343895348,21.715,19.48,19.474,55.0]
[1688343896945,21.715,19.48,19.473,55.0]
[1688343898259,21.715,19.48,19.469,21.726]
[1688343898551,21.715,19.48,19.466,21.729]
[1688343898552,20.0,19.479,19.466,21.729]
[1688343898734,77.636,19.476,19.466,21.729]
[1688343899635,77.636,19.476,19.467,76.728]
[1688343899837,21.72,19.476,19.467,76.728]
[1688343900430,21.72,19.476,19.467,87.56519922]
[1688343902037,21.72,19.476,19.467,76.728]
[1688343902347,21.72,19.476,19.465,21.73]
[1688343903848,21.72,19.476,19.464,120.5804]
[1688343904049,21.72,19.476,19.465,55.0]
[1688343906148,21.72,19.476,19.458,102.116]
[1688343906149,21.72,19.476,19.454,21.743]
[1688343906344,75.0,19.475,19.453,96.2553]
[1688343906651,179.725,19.469,19.445,21.752]
[1688343906865,21.98,19.46,19.436,21.763]
[1688343907152,21.744,19.453,19.44,21.91]
[1688343907345,178.077,19.459,19.44,21.91]
[1688343907547,21.744,19.453,19.445,21.752]
[1688343907854,77.725,19.453,19.441,21.757]
[1688343908439,21.744,19.453,19.441,21.757]
[1688343908633,21.744,19.453,19.441,123.963]
[1688343909761,21.744,19.453,19.441,21.757]
[1688343911634,21.744,19.453,19.445,21.753]
[1688343911841,21.744,19.453,19.446,76.751]
[1688343912057,21.744,19.453,19.447,55.0]
[1688343912254,21.744,19.453,19.447,76.751]
[1688343912434,21.744,19.453,19.447,55.0]
[1688343912632,21.744,19.453,19.443,21.755]
[1688343912849,21.744,19.453,19.444,55.0]
[1688343914356,21.744,19.453,19.445,21.753]
[1688343914560,21.744,19.453,19.446,55.0]
[1688343914756,21.744,19.453,19.446,76.751]
[1688343916250,76.751,19.459,19.446,76.751]
[1688343916437,102.088,19.464,19.446,76.751]
[1688343916639,21.735,19.461,19.447,108.9423]
[1688343916854,21.735,19.461,19.453,21.743]
[1688343917150,21.735,19.461,19.449,102.163]
[1688343917358,21.735,19.461,19.453,21.744]
[1688343917544,21.735,19.461,19.449,55.992]
[1688343917545,21.735,19.461,19.452,21.745]
[1688343918053,21.735,19.461,19.453,55.0]
[1688343918251,21.735,19.461,19.455,21.742]
[1688343918754,21.735,19.461,19.454,21.743]
[1688343919347,31.80173406,19.461,19.431,25.1562734]
[1688343919549,41.99,19.46,19.447,21.75]
[1688343919850,77.713,19.457,19.448,55.0]
[1688343920257,77.713,19.457,19.447,21.75]
[1688343921441,77.713,19.457,19.443,94.8429]
[1688343921641,87.77973406,19.457,19.445,21.752]
[1688343921842,87.77973406,19.457,19.446,76.752]
[1688343924053,21.741,19.457,19.446,132.753]
[1688343924740,21.741,19.457,19.446,76.752]
[1688343926253,77.71,19.457,19.446,76.752]
[1688343926556,21.741,19.457,19.446,76.752]
[1688343927251,77.71,19.457,19.444,21.753]
[1688343927445,87.77673406,19.457,19.443,94.8429]
[1688343927651,87.77673406,19.457,19.443,116.5979]
[1688343928049,87.77673406,19.457,19.443,21.755]
[1688343928558,87.77673406,19.457,19.444,55.0]
[1688343928759,87.77673406,19.457,19.444,76.754]
[1688343929056,77.71,19.457,19.444,76.754]
[1688343929239,21.741,19.457,19.444,76.754]
[1688343929647,21.741,19.457,19.448,77.742]
[1688343929844,55.954,19.463,19.451,21.746]
[1688343930067,66.01173406,19.466,19.452,55.0]
[1688343930257,66.01173406,19.466,19.456,21.741]
[1688343930258,21.734,19.462,19.456,21.741]
[1688343930464,21.734,19.462,19.454,21.742]
[1688343930651,21.734,19.462,19.455,55.0]
[1688343931156,77.689,19.462,19.455,55.0]
[1688343931342,77.689,19.462,19.454,55.0]
[1688343931538,87.75573406,19.462,19.444,56.005]
[1688343931742,77.713,19.456,19.447,21.751]
[1688343931951,77.713,19.456,19.446,21.752]
[1688343932240,77.713,19.456,19.445,90.1417]
[1688343932948,77.713,19.456,19.441,56.012]
[1688343934248,77.713,19.456,19.445,21.753]
[1688343934453,77.713,19.456,19.446,55.0]
[1688343934650,77.713,19.456,19.447,21.75]
[1688343934858,77.713,19.456,19.448,55.0]
[1688343935875,77.713,19.456,19.302,3.45]
[1688343935876,87.77973406,19.456,19.438,56.021]
[1688343936053,10.06673406,19.455,19.438,56.021]
[1688343936362,77.738,19.45,19.438,77.781]
[1688343937265,77.738,19.45,19.438,21.76]
[1688343937459,20.0,19.449,19.438,21.76]
[1688343937663,21.752,19.446,19.438,21.76]
[1688343939354,102.144,19.453,19.438,21.76]
[1688343939355,55.981,19.453,19.44,21.89]
[1688343939563,158.103,19.456,19.443,21.754]
[1688343939862,21.746,19.452,19.444,55.0]
[1688343940064,21.746,19.452,19.445,21.753]
[1688343940263,21.746,19.452,19.442,91.0353]
[1688343940460,21.746,19.452,19.443,55.0]
[1688343940970,20.0,19.451,19.437,21.762]
[1688343941172,77.749,19.447,19.436,21.763]
[1688343942049,77.749,19.447,19.432,91.0353]
[1688343942265,77.749,19.447,19.436,21.763]
[1688343942464,21.751,19.447,19.436,77.793]
[1688343942864,21.751,19.447,19.44,21.759]
[1688343943060,21.751,19.447,19.433,56.037]
[1688343943061,77.749,19.447,19.433,56.037]
[1688343943275,77.749,19.447,19.438,21.76]
[1688343944250,21.751,19.447,19.438,21.76]
[1688343944446,21.751,19.447,19.439,55.0]
[1688343944855,21.751,19.447,19.441,21.757]
[1688343945058,21.751,19.447,19.442,55.0]
[1688343945364,36.95033475,19.457,19.442,76.756]
[1688343945365,55.979,19.454,19.442,76.756]
[1688343945568,21.748,19.45,19.442,76.756]
[1688343945749,55.979,19.454,19.442,76.756]
[1688343945750,21.749,19.449,19.442,76.756]
[1688343946353,21.745,19.452,19.442,76.756]
[1688343946568,21.742,19.455,19.442,76.756]
[1688343946762,21.742,19.455,19.442,87.59319922]
[1688343946963,77.717,19.455,19.442,76.756]
[1688343951868,77.717,19.455,19.442,132.768]
[1688343953581,77.717,19.455,19.442,21.756]
[1688343954894,77.717,19.455,19.443,55.0]
[1688343955061,77.717,19.455,19.446,21.751]
[1688343955378,77.717,19.455,19.445,21.752]
[1688343955562,77.717,19.455,19.443,55.0]
[1688343955767,77.717,19.455,19.442,55.0]
[1688343956872,77.717,19.455,19.444,21.754]
[1688343957068,77.717,19.455,19.448,21.75]
[1688343957659,77.717,19.455,19.447,21.75]
[1688343958480,77.717,19.455,19.44,56.016]
[1688343958682,87.78373406,19.455,19.44,21.758]
[1688343958989,30.06673406,19.454,19.439,21.76]
[1688343959184,179.899,19.45,19.439,21.76]
[1688343959486,21.752,19.446,19.438,21.761]
[1688343960884,21.752,19.446,19.439,55.0]
[1688343961182,21.752,19.446,19.441,21.758]
[1688343961487,21.752,19.446,19.442,76.756]
[1688343962385,21.752,19.446,19.442,55.0]
[1688343963488,21.751,19.447,19.442,76.756]
[1688343963665,55.982,19.453,19.442,76.756]
[1688343963982,21.745,19.453,19.442,132.768]
[1688343964780,21.745,19.453,19.442,234.969]
[1688343965366,21.745,19.453,19.442,76.756]
[1688343965567,21.745,19.453,19.442,21.756]
[1688343965767,31.81173406,19.453,19.44,21.758]
[1688343966489,77.743,19.449,19.44,21.758]
[1688343966985,77.743,19.449,19.441,55.0]
[1688343967185,77.743,19.449,19.441,76.757]
[1688343970192,21.749,19.449,19.441,76.757]
[1688343972206,21.749,19.449,19.441,21.757]
[1688343972487,77.741,19.449,19.44,21.758]
[1688343972696,87.80773406,19.449,19.432,158.29]
[1688343972884,87.80773406,19.449,19.436,21.762]
[1688343973200,77.76,19.445,19.435,21.764]
[1688343974982,77.76,19.445,19.436,55.0]
[1688343975281,21.754,19.445,19.438,21.761]
[1688343978204,21.754,19.445,19.438,20.761]
[1688343978576,21.754,19.445,19.439,76.759]
[1688343979787,21.754,19.445,19.439,21.759]
[1688343979994,77.758,19.445,19.436,21.763]
[1688343980287,77.758,19.445,19.437,55.0]
[1688343980704,77.758,19.445,19.437,76.761]
[1688343982001,77.758,19.445,19.437,55.0]
[1688343982190,77.758,19.445,19.431,92.6949]
[1688343982500,21.754,19.445,19.435,77.796]
[1688343982701,26.25475679,19.456,19.436,55.0]
[1688343982702,21.752,19.447,19.436,55.0]
[1688343982908,21.747,19.451,19.439,77.78]
[1688343983202,21.746,19.452,19.44,55.0]
[1688343983399,82.84932952,19.457,19.446,21.752]
[1688343983400,21.745,19.453,19.446,21.752]
[1688343983600,21.745,19.453,19.447,55.0]
[1688343983783,21.745,19.453,19.448,21.749]
[1688343989204,21.745,19.453,19.447,55.0]
[1688343989509,21.745,19.453,19.447,76.751]
[1688343990198,21.745,19.453,19.442,82.9306]
[1688343990398,77.726,19.453,19.445,21.753]
[1688343991509,87.79273406,19.453,19.442,82.9306]
[1688343991803,10.06673406,19.452,19.442,82.9306]
[1688343991995,21.749,19.449,19.442,82.9306]
[1688343993003,77.741,19.449,19.439,21.76]
[1688343993305,77.741,19.449,19.437,21.762]
[1688343994405,77.741,19.449,19.438,55.0]
[1688343996407,77.741,19.449,19.437,55.0]
[1688343997800,77.741,19.449,19.437,76.762]
[1688344002308,77.741,19.449,19.437,55.0]
[1688344002506,87.80773406,19.449,19.433,114.5943]
[1688344002685,10.06673406,19.448,19.433,92.8283]
[1688344002891,179.979,19.442,19.427,21.773]
[1688344003086,179.979,19.442,19.421,30.0]
[1688344003291,77.796,19.435,19.426,21.774]
[1688344006011,21.763,19.437,19.426,21.774]
[1688344006209,21.76,19.439,19.427,10.83719922]
[1688344006407,21.759,19.44,19.43,77.813]
[1688344006710,21.758,19.441,19.433,21.766]
[1688344007007,158.184,19.446,19.434,55.0]
[1688344007215,21.757,19.442,19.437,21.762]
[1688344007710,21.757,19.442,19.436,21.763]
[1688344007903,21.757,19.442,19.434,55.0]
[1688344008208,21.757,19.442,19.433,55.0]
[1688344009315,21.757,19.442,19.437,21.762]
[1688344010615,21.753,19.446,19.438,55.0]
[1688344010926,102.134,19.455,19.441,21.757]
[1688344011100,25.71652778,19.456,19.446,77.753]
[1688344011101,10.06673406,19.456,19.446,77.753]
[1688344011294,26.88892601,19.457,19.446,77.753]
[1688344011492,21.741,19.456,19.45,21.748]
[1688344012007,21.739,19.458,19.45,21.748]
[1688344012912,21.739,19.458,19.451,55.0]
[1688344013121,21.739,19.458,19.448,98.5712]
[1688344013322,77.705,19.458,19.44,22.05]
[1688344013520,77.705,19.458,19.443,21.755]
[1688344013700,87.77173406,19.458,19.437,56.024]
[1688344013903,30.06673406,19.457,19.437,98.5712]
[1688344014198,77.732,19.451,19.439,21.759]
[1688344014400,20.0,19.45,19.439,21.759]
[1688344014612,21.751,19.447,19.439,21.759]
[1688344015499,21.751,19.447,19.442,21.756]
[1688344015718,21.751,19.447,19.443,55.0]
[1688344015913,21.751,19.447,19.443,76.755]
[1688344019305,21.751,19.447,19.443,55.0]
[1688344020624,21.744,19.454,19.443,76.755]
[1688344022206,21.744,19.454,19.443,87.59219922]
[1688344022517,55.967,19.458,19.443,87.59219922]
[1688344022721,21.741,19.457,19.443,87.59219922]
[1688344023524,21.741,19.457,19.444,10.83719922]
[1688344023817,25.54874138,19.468,19.444,10.83719922]
[1688344023818,20.0,19.47,19.45,22.09]
[1688344024008,21.733,19.464,19.454,21.742]
[1688344024203,21.733,19.464,19.451,55.0]
[1688344024204,21.733,19.464,19.451,97.7369]
[1688344024410,21.733,19.464,19.452,55.0]
[1688344024813,77.682,19.464,19.442,21.756]
[1688344025008,87.74873406,19.464,19.445,97.7369]
[1688344025218,10.06673406,19.463,19.44,22.1]
[1688344025417,179.836,19.457,19.441,97.7369]
[1688344025618,179.836,19.457,19.44,22.1]
[1688344025854,179.836,19.457,19.44,43.859]
[1688344026029,189.90273406,19.457,19.43,78.055]
[1688344026206,20.0,19.456,19.433,21.767]
[1688344026522,179.905,19.45,19.433,21.767]
[1688344026703,77.759,19.445,19.433,21.767]
[1688344026905,77.759,19.445,19.433,32.60419922]
[1688344028018,77.759,19.445,19.431,113.9211]
[1688344028226,77.759,19.445,19.431,92.1531]
[1688344028809,77.759,19.445,19.429,32.60819922]
[1688344030210,77.759,19.445,19.431,21.769]
[1688344030404,77.759,19.445,19.432,55.0]
[1688344030615,77.759,19.445,19.432,76.768]
[1688344031418,77.759,19.445,19.424,158.355]
[1688344031614,10.06673406,19.444,19.42,146.534]
[1688344031920,180.001,19.439,19.424,21.776]
[1688344032119,180.001,19.439,19.426,21.774]
[1688344034317,180.001,19.439,19.427,76.773]
[1688344034714,180.001,19.439,19.427,55.0]
[1688344034921,190.06773406,19.439,19.427,55.0]
[1688344035110,10.06673406,19.438,19.427,55.0]
[1688344035312,180.037,19.435,19.427,55.0]
[1688344035524,180.037,19.435,19.42,93.6588]
[1688344035525,180.037,19.435,19.422,21.778]
[1688344035726,180.037,19.435,19.42,93.6588]
[1688344036021,180.037,19.435,19.413,158.444]
[1688344036022,190.10373406,19.435,19.419,21.782]
[1688344037925,190.10373406,19.435,19.421,21.779]
[1688344038121,190.10373406,19.435,19.422,55.0]
[1688344038728,190.10373406,19.435,19.422,76.779]
[1688344039318,77.798,19.435,19.422,76.779]
[1688344040711,21.765,19.435,19.422,76.779]
[1688344041115,21.765,19.435,19.426,21.774]
[1688344041418,21.765,19.435,19.428,21.772]
[1688344041837,21.765,19.435,19.429,55.0]
[1688344042015,21.765,19.435,19.426,21.773]
[1688344042421,21.765,19.435,19.427,55.0]
[1688344045341,21.765,19.435,19.426,55.0]
[1688344045530,21.765,19.435,19.423,92.2347]
[1688344045730,21.765,19.435,19.422,21.779]
[1688344046619,21.765,19.435,19.418,56.079]
[1688344046824,21.765,19.435,19.421,21.78]
[1688344047021,21.765,19.435,19.422,55.0]
[1688344047438,21.765,19.435,19.422,76.779]
[1688344049539,21.765,19.435,19.422,132.849]
[1688344051044,21.765,19.435,19.422,76.779]
[1688344057340,21.765,19.435,19.422,132.849]
[1688344057835,21.763,19.436,19.422,132.849]
[1688344058041,21.763,19.436,19.426,77.829]
[1688344058249,21.763,19.436,19.429,21.77]
[1688344058742,21.763,19.436,19.426,56.056]
[1688344058743,21.763,19.436,19.43,76.77]
[1688344059835,21.763,19.436,19.43,55.0]
[1688344061827,21.763,19.436,19.423,115.8622]
[1688344061828,77.793,19.436,19.423,115.8622]
[1688344062235,77.793,19.436,19.423,94.0852]
[1688344062836,102.23,19.437,19.412,21.79]
[1688344062837,180.104,19.428,19.412,21.79]
[1688344063044,180.104,19.428,19.412,30.0]
[1688344063250,10.06673406,19.427,19.412,30.0]
[1688344063542,180.15,19.423,19.41,21.791]
[1688344065231,180.15,19.423,19.411,76.791]
[1688344065537,180.15,19.423,19.411,71.791]
[1688344066450,77.846,19.423,19.411,71.791]
[1688344067546,77.846,19.423,19.411,21.791]
[1688344068643,77.846,19.423,19.411,77.893]
[1688344069143,77.846,19.423,19.412,55.0]
[1688344069344,77.846,19.423,19.414,21.787]
[1688344069540,77.846,19.423,19.415,55.0]
[1688344069746,77.846,19.423,19.415,76.786]
[1688344072358,77.846,19.423,19.415,55.0]
[1688344074952,77.846,19.423,19.412,91.444]
[1688344075353,77.846,19.423,19.413,55.0]
[1688344076154,77.846,19.423,19.414,21.787]
[1688344076453,21.778,19.423,19.417,21.784]
[1688344076652,21.778,19.423,19.415,76.786]
[1688344078855,21.778,19.423,19.415,55.0]
[1688344079359,21.778,19.423,19.414,55.0]
[1688344082348,21.778,19.423,19.414,76.788]
[1688344084257,77.845,19.423,19.414,76.788]
[1688344084459,22.13,19.42,19.401,21.802]
[1688344084655,24.074,19.414,19.402,30.0]
[1688344084852,77.895,19.411,19.399,118.2535]
[1688344085048,77.895,19.411,19.399,96.4485]
[1688344085546,87.96173406,19.411,19.391,158.628]
[1688344085746,87.96173406,19.411,19.392,126.4485]
[1688344086061,87.96173406,19.411,19.395,21.809]
[1688344086250,52.19673406,19.41,19.392,96.4485]
[1688344086564,180.316,19.405,19.392,118.2605]
[1688344086757,180.316,19.405,19.392,21.812]
[1688344087654,180.316,19.405,19.393,55.0]
[1688344087852,180.316,19.405,19.394,21.809]
[1688344088056,180.316,19.405,19.395,55.0]
[1688344088360,180.316,19.405,19.388,102.481]
[1688344088361,20.0,19.404,19.388,21.816]
[1688344088557,77.941,19.4,19.388,21.816]
[1688344088759,21.808,19.396,19.388,21.816]
[1688344089076,21.808,19.396,19.383,56.18]
[1688344089362,21.808,19.396,19.387,21.818]
[1688344090359,21.808,19.396,19.387,77.989]
[1688344090663,21.807,19.397,19.387,77.989]
[1688344091263,102.42,19.401,19.387,77.989]
[1688344091563,102.42,19.401,19.387,21.818]
[1688344091564,124.223,19.401,19.387,21.818]
[1688344092358,134.28973406,19.401,19.387,21.818]
[1688344092559,10.06673406,19.4,19.387,21.818]
[1688344092760,77.953,19.397,19.387,21.818]
[1688344092961,21.808,19.397,19.387,21.818]
[1688344093965,180.388,19.397,19.386,21.818]
[1688344095362,180.388,19.397,19.379,102.531]
[1688344095363,77.95,19.397,19.379,102.531]
[1688344095567,77.95,19.397,19.37,44.28]
[1688344095568,77.95,19.397,19.386,21.819]
[1688344096269,77.95,19.397,19.385,21.82]
[1688344096449,77.95,19.397,19.376,98.6571]
[1688344096652,21.808,19.397,19.386,21.819]
[1688344096870,21.808,19.397,19.386,20.819]
[1688344097662,21.808,19.397,19.384,98.6571]
[1688344097663,21.808,19.397,19.39,21.815]
[1688344097971,21.808,19.397,19.387,111.171]
[1688344097972,102.398,19.405,19.392,21.812]
[1688344098269,22.19,19.41,19.395,21.808]
[1688344098270,21.802,19.402,19.395,21.808]
[1688344100470,87.99673406,19.402,19.39,21.814]
[1688344100768,10.06673406,19.401,19.39,21.814]
[1688344100965,10.06673406,19.401,19.387,56.17]
[1688344100966,77.946,19.398,19.389,21.816]
[1688344102967,21.806,19.398,19.39,55.0]
[1688344103174,102.394,19.406,19.392,21.812]
[1688344103369,102.394,19.406,19.393,55.0]
[1688344103370,21.802,19.402,19.393,55.0]
[1688344103676,21.802,19.402,19.396,21.807]
[1688344106453,21.798,19.406,19.397,55.0]
[1688344106774,21.798,19.406,19.399,21.804]
[1688344107953,21.798,19.406,19.398,21.806]
[1688344108153,21.798,19.406,19.399,55.0]
[1688344108649,21.798,19.406,19.399,76.804]
[1688344108850,21.796,19.408,19.399,76.804]
[1688344109868,56.102,19.412,19.399,76.804]
[1688344111054,21.795,19.408,19.399,76.804]
[1688344111255,77.905,19.408,19.398,21.805]
[1688344111454,77.905,19.408,19.392,151.2391]
[1688344111651,77.905,19.408,19.394,21.81]
[1688344113970,77.905,19.408,19.395,55.0]
[1688344119067,77.905,19.408,19.395,76.809]
[1688344120776,77.905,19.408,19.395,55.0]
[1688344120984,77.905,19.408,19.395,21.809]
[1688344121281,77.905,19.408,19.396,55.0]
[1688344121589,77.905,19.408,19.396,76.808]
[1688344125980,76.804,19.416,19.4,44.1]
[1688344126284,21.786,19.416,19.404,21.798]
[1688344126488,21.786,19.416,19.405,55.0]
[1688344126665,21.786,19.416,19.406,21.797]
[1688344126863,21.786,19.416,19.407,55.0]
[1688344127059,21.786,19.416,19.406,21.797]
[1688344127060,21.786,19.416,19.406,21.796]
[1688344127365,21.786,19.416,19.399,56.134]
[1688344127576,21.786,19.416,19.4,55.0]
[1688344128475,21.786,19.416,19.402,21.801]
[1688344128680,21.786,19.416,19.406,21.796]
[1688344129063,55.0,19.42,19.409,77.9]
[1688344129380,55.0,19.42,19.407,55.0]
[1688344129381,21.776,19.425,19.416,21.786]
[1688344129566,22.19,19.43,19.416,21.786]
[1688344129567,21.776,19.426,19.417,55.0]
[1688344129764,21.776,19.426,19.419,21.782]
[1688344131088,21.776,19.426,19.412,56.098]
[1688344131089,77.834,19.426,19.412,56.098]
[1688344131286,180.119,19.426,19.411,94.6029]
[1688344131472,180.119,19.426,19.412,55.0]
[1688344132192,180.119,19.426,19.414,21.788]
[1688344136072,77.834,19.426,19.415,55.0]
[1688344136387,77.834,19.426,19.418,21.783]
[1688344136577,77.834,19.426,19.415,55.0]
[1688344136778,77.834,19.426,19.416,21.785]
[1688344137488,55.0,19.43,19.416,21.785]
[1688344137489,55.0,19.43,19.416,180.21]
[1688344137673,21.764,19.435,19.428,21.771]
[1688344137990,94.4194,19.445,19.428,21.771]
[1688344137991,21.763,19.436,19.428,21.771]
[1688344139389,21.763,19.436,19.426,21.774]
[1688344140166,21.763,19.436,19.427,55.0]
[1688344140493,21.763,19.436,19.429,21.77]
[1688344141078,21.763,19.436,19.43,55.0]
[1688344141288,21.763,19.436,19.43,76.769]
[1688344141489,21.763,19.436,19.423,56.065]
[1688344141678,21.763,19.436,19.424,55.0]
[1688344143181,21.763,19.436,19.426,21.773]
[1688344144087,21.763,19.436,19.427,55.0]
[1688344144287,21.763,19.436,19.428,21.771]
[1688344146287,10.06673406,19.446,19.427,55.0]
[1688344146478,21.765,19.435,19.427,76.773]
[1688344148298,77.797,19.435,19.427,54.5]
[1688344148800,77.797,19.435,19.427,76.273]
[1688344149885,77.797,19.435,19.427,21.773]
[1688344150094,77.797,19.435,19.424,21.776]
[1688344151303,77.797,19.435,19.416,56.087]
[1688344151595,22.13,19.44,19.418,21.782]
[1688344151596,180.088,19.43,19.418,21.782]
[1688344151794,180.088,19.43,19.417,21.784]
[1688344152000,21.777,19.424,19.416,21.785]
[1688344152189,77.841,19.424,19.415,21.787]
[1688344152587,77.841,19.424,19.414,21.788]
[1688344153904,77.841,19.424,19.415,55.0]
[1688344154793,77.841,19.424,19.415,76.787]
[1688344156887,77.841,19.424,19.414,21.787]
[1688344157190,77.841,19.424,19.415,55.0]
[1688344157593,77.841,19.424,19.414,21.787]
[1688344157990,77.841,19.424,19.414,21.287]
[1688344159208,77.841,19.424,19.417,21.784]
[1688344159983,77.841,19.424,19.416,21.785]
[1688344160187,77.841,19.424,19.417,55.0]
[1688344161910,77.841,19.424,19.417,76.785]
[1688344162203,66.12773406,19.431,19.417,76.785]
[1688344162204,102.271,19.429,19.417,76.785]
[1688344162418,21.775,19.426,19.417,76.785]
[1688344164813,21.775,19.426,19.415,91.0792]
[1688344166997,21.775,19.426,19.415,112.8662]
[1688344167607,21.775,19.426,19.416,55.0]
[1688344167810,21.775,19.426,19.419,21.782]
[1688344168911,21.775,19.426,19.417,21.783]
[1688344172815,26.39822699,19.433,19.417,21.783]
[1688344173113,76.785,19.434,19.417,21.783]
[1688344173114,21.773,19.428,19.422,21.779]
[1688344173314,56.034,19.435,19.423,76.777]
[1688344173499,22.19,19.44,19.423,76.777]
[1688344173500,21.764,19.436,19.424,55.0]
[1688344173698,21.764,19.436,19.427,21.773]
[1688344173896,21.764,19.436,19.428,55.0]
[1688344174100,21.764,19.436,19.43,21.77]
[1688344175199,21.764,19.436,19.427,21.773]
[1688344175400,21.764,19.436,19.421,99.3049]
[1688344175801,21.764,19.436,19.425,21.775]
[1688344176404,21.764,19.436,19.424,21.777]
[1688344180310,21.764,19.436,19.421,99.3049]
[1688344181824,21.764,19.436,19.422,21.779]
[1688344185429,21.764,19.436,19.421,99.3049]
[1688344185430,20.0,19.435,19.421,99.3049]
[1688344185732,180.074,19.431,19.415,56.088]
[1688344185916,77.83,19.427,19.418,21.783]
[1688344190432,77.83,19.427,19.417,21.784]